[Event "German Bundesliga 2023-24"]
[Site "Germany"]
[Date "2024.02.23"]
[Round "9.39"]
[White "Buckels, Valentin"]
[Black "Naumann, Alexander"]
[Result "1/2-1/2"]
[ECO "E11"]
[WhiteElo "2429"]
[BlackElo "2498"]
[Annotator "TA"]
[PlyCount "72"]
[EventDate "2023.10.20"]
[EventType "team-tourn"]
[EventCountry "GER"]
[SourceTitle "playchess.com"]
[Source "ChessBase"]
[SourceQuality "1"]
[TimeControl "40/6000+30:3000+30"]

{[%evp 12,72,16,11,29,35,39,24,46,43,41,41,55,50,50,37,45,35,54,59,57,64,56,56,65,57,84,84,120,72,86,91,129,77,76,29,115,0,14,4,0,0,0,0,0,0,0,0,0,0,0,0,47,40,31,17,33,0,0,0,16,0,0]} 1. d4 {[%emt 0:00:03]} Nf6 {[%emt 0:00:08]} 2. c4 {[%emt 0:00:19]} e6 {[%emt 0:00:12]} 3. Nf3 {[%emt 0:00:22]} d5 {[%emt 0:00:16]} 4. g3 {[%emt 0:00:18]} Bb4+ {[%emt 0:01:07]} 5. Bd2 {[%emt 0:00:20]} a5 {[%emt 0:01:24]} 6. Qc2 {[%emt 0:01:00]} O-O {[%emt 0:00:37]} 7. Bg2 {[%emt 0:02:14]} c5 {[%emt 0:00:45]} 8. cxd5 {[%emt 0:01:05]} cxd4 {[%emt 0:00:42]} 9. Nxd4 {[%emt 0:00:14]} Qb6 {[%emt 0:00:16] White has an edge.} 10. e3 {[%emt 0:01:38]} exd5 {[%emt 0:00:57]} 11. O-O {[%emt 0:00:56]} Nc6 {[%emt 0:00:43]} 12. Nxc6 {[%emt 0:01:46]} bxc6 {[%emt 0:00:06]} 13. Rc1 {[%emt 0:02:57]} Rb8 {[%emt 0:07:17]} 14. Nc3 {[%emt 0:05:16]} ({But not} 14. Qxc6 Qxc6 15. Rxc6 Bxd2 16. Nxd2 Rxb2 $11) 14... Bd7 {[%emt 0:25:31]} 15. Na4 {[%emt 0:05:39]} Qa7 {[%emt 0:00:43]} 16. Bc3 {[%emt 0:09:48]} Bxc3 {[%emt 0:02:09]} 17. Qxc3 {[%emt 0:00:11]} Rb4 {[%emt 0:05:24]} 18. b3 {[%emt 0:05:27]} Ne4 {[%emt 0:11:25]} 19. Bxe4 {[%emt 0:07:23]} dxe4 {[%emt 0:01:06]} 20. Nc5 {[%emt 0:05:29]} (20. Qc5 $142 Ra8 21. Qd6) 20... Bh3 $16 {[%emt 0:08:39]} 21. Qe5 {[%emt 0:05:20] Prevents Qe7.} Rb5 {[%emt 0:03:16]} 22. a4 {[%emt 0:04:25]} ({Better is} 22. Rc2) 22... Rb4 {[%emt 0:00:55]} 23. Ra2 {[%emt 0:11:38] White is more active.} (23. Nxe4 $16 Rxb3 24. Nc5 (24. Rxc6 $2 Qb7 $19)) 23... f6 {[%emt 0:03:56] [#]} (23... h6 $11 {keeps the balance.}) 24. Qd6 {[%emt 0:09:50]} ({White has to play} 24. Qh5 $1 $16 {[%cal Rh5h3]} Bc8 25. Qe2) 24... Qf7 $11 {[%emt 0:03:02]} 25. Rd2 {[%emt 0:02:31]} h6 {[%emt 0:09:40]} 26. Rd4 {[%emt 0:17:15]} Rxd4 {[%emt 0:04:13]} 27. Qxd4 {[%emt 0:00:09]} Qh5 {[%emt 0:06:03]} 28. Qd1 {[%emt 0:05:03]} (28. Nxe4 $2 {is the wrong capture.} Qf3 29. Qc4+ Kh7 $19) 28... Qf5 {[%emt 0:02:36]} 29. Nb7 $1 {[%emt 0:00:35]} Bg4 {[%emt 0:02:12]} 30. Qd6 {[%emt 0:02:26]} Bf3 {[%emt 0:03:53] [#] ...Qh3 would now be deadly.} 31. Qxc6 {[%emt 0:03:29]} (31. Rxc6 $2 {loses.} Qh3 32. Qe6+ Qxe6 33. Rxe6 Rc8 $19) 31... Kh7 {[%emt 0:00:50]} (31... Rb8 $11 32. Qc4+ Kh8) 32. Qb5 $1 $14 {[%emt 0:00:37]} Qh3 {[%emt 0:02:18]} 33. Qf1 {[%emt 0:00:04] Prevents Qg2+} Qh5 {[%emt 0:01:28]} 34. Qb5 {[%emt 0:00:30] Black must now prevent Qxh5.} Qh3 {[%emt 0:00:30] The position is equal.} 35. Qf1 {[%emt 0:00:02] Repels Qg2+} Qh5 {[%emt 0:00:08]} 36. Qb5 {[%emt 0:01:32] Strongly threatening Qxh5.} Qh3 {[%emt 0:00:29] Weighted Error Value: White=0.14 (very precise) /Black=0.13 (very precise) .  Mistake:       	White=4     	Black=2      Inaccurate:     	---       	Black=3      OK:         	White=11    	Black=14     Best:        	---       	Black=1      Strong:       	White=2     	---} 1/2-1/2

[Event "German Bundesliga 2023-24"]
[Site "Germany"]
[Date "2024.02.23"]
[Round "9.40"]
[White "Wegerle, Joerg"]
[Black "Gungl, Theo"]
[Result "1-0"]
[ECO "D13"]
[WhiteElo "2405"]
[BlackElo "2372"]
[Annotator "TA"]
[PlyCount "73"]
[EventDate "2023.10.20"]
[EventType "team-tourn"]
[EventCountry "GER"]
[SourceTitle "playchess.com"]
[Source "ChessBase"]
[SourceQuality "1"]
[TimeControl "40/6000+30:3000+30"]

{[%evp 20,73,43,22,30,33,44,44,44,44,97,31,31,38,245,244,228,101,126,123,156,138,145,143,150,138,249,79,91,85,156,152,167,158,199,109,203,158,174,171,408,312,526,464,569,514,29991,1376,1327,812,628,581,29990,29991,29991,29992]} 1. c4 {[%emt 0:00:24]} c6 {[%emt 0:00:32]} 2. d4 {[%emt 0:05:23]} d5 {[%emt 0:00:08]} 3. cxd5 {[%emt 0:00:08]} cxd5 {[%emt 0:00:02]} 4. Nc3 {[%emt 0:00:07]} Nf6 {[%emt 0:00:05]} 5. Bf4 {[%emt 0:00:04]} Nc6 {[%emt 0:00:07]} 6. e3 {[%emt 0:00:10]} a6 {[%emt 0:00:11]} 7. Bd3 {[%emt 0:00:14]} e6 {[%emt 0:00:15]} 8. Nf3 {[%emt 0:03:32]} Be7 {[%emt 0:00:43]} 9. h3 {[%emt 0:01:17]} Bd7 {[%emt 0:00:36]} 10. O-O {[%emt 0:01:27]} O-O {[%emt 0:00:46]} 11. Rc1 {[%emt 0:01:15]} Qa5 {[%emt 0:00:43]} 12. Ne5 {[%emt 0:08:01]} Rfc8 {[%emt 0:03:54]} 13. Bg5 {[%emt 0:07:49]} Be8 $1 {[%emt 0:01:28] White is slightly better.} 14. f4 {[%emt 0:00:46][%cal Bf2f4,Bf4f5,Bf5f6][%mdl 32]} b5 {[%emt 0:14:08]} ({Better is} 14... Qb4 $14) 15. Bxf6 {[%emt 0:21:38]} (15. f5 $16 Qd8 16. fxe6 fxe6 17. Ng4) 15... Bxf6 $14 {[%emt 0:00:19]} 16. Ng4 {[%emt 0:00:15]} Bd8 {[%emt 0:16:30]} (16... Qd8 $14) 17. f5 $18 {[%emt 0:07:05] fxe6 is the strong threat.} Qc7 {[%emt 0:30:04]} 18. Qf3 {[%emt 0:13:09]} (18. Nh6+ $1 $18 {and the rest is easy.} gxh6 19. Qg4+ Kf8 20. f6 (20. fxe6 f6 $18) 20... Bxf6 21. Rxf6) 18... Qd6 $16 {[%emt 0:07:22]} 19. f6 {[%emt 0:07:43][%cal Og4h6] Inhibits Be7.} g6 {[%emt 0:09:45]} (19... h5 $2 20. Nh6+ gxh6 21. Qxh5 Bxf6 22. Rxf6 $18) 20. Nh6+ {[%emt 0:14:58]} Kh8 {[%emt 0:04:00]} 21. Qg4 $1 {[%emt 0:02:04][%cal Od3g6] Threatens to win with Bxg6!} Qf8 {[%emt 0:08:20]} 22. Qg5 {[%emt 0:02:29] White has more active pieces.} Rc7 {[%emt 0:04:28]} (22... Nb8 $16 23. Nxd5 Nd7 (23... Rxc1 24. Rxc1 Nd7 25. Ne7 $18)) 23. Rf4 $2 {[%emt 0:01:00]} (23. Ne2 $18) 23... Nb8 {[%emt 0:02:43]} 24. Rcf1 {[%emt 0:01:16]} Nd7 {[%emt 0:01:44]} ({Black should play} 24... b4 25. Ne2 Nd7) 25. Ng4 {[%emt 0:02:29]} Rac8 {[%emt 0:01:21]} 26. Ne2 {[%emt 0:01:24]} Rc6 {[%emt 0:01:22] [#]} 27. Ne5 {[%emt 0:01:42]} (27. R4f2 $1 $18) 27... Nxe5 {[%emt 0:00:33]} (27... Rc2 $16) 28. dxe5 $18 {[%emt 0:00:40]} (28. Qxe5 Qh6 (28... Bc7 $2 29. Qg5 $19) 29. Rg4 Bc7 $17) 28... Bb6 {[%emt 0:00:28] [#]} 29. Rh4 $1 $40 {[%emt 0:02:05][%mdl 128] White goes for the king.} Kg8 $2 {[%emt 0:01:29]} (29... Rc2 {was called for.}) 30. Kh1 {[%emt 0:01:41]} Bc7 $2 {[%emt 0:00:50]} (30... Kh8 {might work better.} 31. Rh6 R8c7) 31. Nd4 {[%emt 0:00:39]} Rc5 {[%emt 0:00:20]} 32. Nf3 {[%emt 0:00:35]} Bb6 {[%emt 0:00:35]} (32... Bxe5 $18 33. Qxe5 (33. Nxe5 Rc1 $18) 33... d4) 33. Rh6 {[%emt 0:00:50]} (33. Rxh7 $142 Rc4 34. Bxc4 (34. Rg7+ Qxg7 35. fxg7 Kxg7 $18) 34... Rxc4 35. g4 (35. Rg7+ Qxg7 36. fxg7 Bxe3 $18) 35... Rxg4 36. hxg4 (36. Rxf7 Qxf7 37. hxg4 Qa7 $18) 36... Kxh7 37. Qh4+ Kg8 38. Ng5) 33... Rc4 {[%emt 0:00:33][%cal Bc5c4,Bc4c3,Bc3d3][%mdl 32]} 34. b3 {[%emt 0:01:02]} Bxe3 {[%emt 0:00:33]} 35. Qxe3 {[%emt 0:00:16]} Rc3 {[%emt 0:00:06] [#]} 36. Qf4 $1 {[%emt 0:01:20]} Rxd3 {[%emt 0:00:45]} (36... Rc1 37. Rxc1) 37. Qh4 {[%emt 0:00:05] Weighted Error Value: White=0.34/Black=0.84.  Loses game:     	---       	Black=1      Missed win:     	White=1     	---        Mistake:       	White=4     	Black=7      OK:         	White=7     	Black=3      Best:        	White=1     	Black=4      Strong:       	White=2     	Black=1} 1-0

[Event "German Bundesliga 2023-24"]
[Site "Germany"]
[Date "2024.02.23"]
[Round "9.41"]
[White "Livaic, Leon"]
[Black "Gledura, Benjamin"]
[Result "1/2-1/2"]
[ECO "B52"]
[WhiteElo "2549"]
[BlackElo "2633"]
[Annotator "TA"]
[PlyCount "69"]
[EventDate "2023.10.20"]
[EventType "team-tourn"]
[EventCountry "GER"]
[SourceTitle "playchess.com"]
[Source "ChessBase"]
[SourceQuality "1"]
[TimeControl "40/6000+30:3000+30"]

{[%evp 9,69,19,22,20,20,6,12,10,12,0,0,0,0,0,3,2,12,4,9,11,10,0,12,0,0,0,-1,-8,-8,-14,-8,-11,-7,0,0,0,0,0,0,0,0,0,44,0,0,0,0,0,0,0,0,0,0,0,0,0,0,0,0,0,0,0]} 1. e4 {[%emt 0:00:07]} c5 {[%emt 0:00:21]} 2. Nf3 {[%emt 0:00:14]} d6 {[%emt 0:00:15]} 3. Bb5+ {[%emt 0:00:29]} Bd7 {[%emt 0:00:41]} 4. Bxd7+ {[%emt 0:00:16]} Nxd7 {[%emt 0:00:17]} 5. O-O {[%emt 0:00:55]} e6 {[%emt 0:00:31]} 6. b3 {[%emt 0:01:29]} Be7 {[%emt 0:02:02]} 7. Bb2 {[%emt 0:00:24]} Bf6 {[%emt 0:04:12]} 8. d4 {[%emt 0:03:24]} cxd4 {[%emt 0:01:56]} 9. Bxd4 {[%emt 0:00:19]} Ne7 {[%emt 0:05:10]} 10. Bxf6 {[%emt 0:23:20]} Nxf6 {[%emt 0:00:10]} 11. Re1 {[%emt 0:01:27]} O-O {[%emt 0:18:03]} 12. c4 {[%emt 0:02:36]} a6 {[%emt 0:07:22]} 13. Nc3 {[%emt 0:00:48]} Qc7 {[%emt 0:02:45]} 14. Rc1 {[%emt 0:05:28]} Rfd8 {[%emt 0:00:15]} 15. Qe2 {[%emt 0:01:05]} Qa5 {[%emt 0:02:25]} 16. e5 {[%emt 0:09:24]} Ne8 {[%emt 0:04:51]} 17. Qe4 {[%emt 0:20:29]} Rab8 {[%emt 0:13:34]} 18. Red1 {[%emt 0:03:19]} b5 {[%emt 0:12:34]} 19. cxb5 {[%emt 0:13:16]} axb5 {[%emt 0:00:18]} 20. b4 {[%emt 0:01:40]} Qa3 {[%emt 0:05:35]} 21. Nd4 {[%emt 0:08:09]} Rdc8 {[%emt 0:12:36]} (21... Qxb4 {with more complications.} 22. Nf5 Qxe4 23. Nxe7+ Kf8) 22. exd6 {[%emt 0:03:57]} (22. Ncxb5 $2 {too greedy.} Rxc1 (22... Qxb4 23. Rxc8 Rxc8 24. exd6 $11) (22... Qxc1 $2 23. Qe1 $19) 23. Qg4 Qb2 $19 (23... Qxa2 $2 24. Rxc1 dxe5 25. Qg5 $19) (23... Rxd1+ $2 24. Qxd1 Qxb4 25. exd6 $19)) (22. Ndxb5 $2 Rxb5 23. exd6 Nxd6 (23... Rxc3 $2 24. Rxc3 Qxc3 25. d7 $19) (23... Rxb4 24. Qd3 $15) 24. Nxb5 Rxc1 $19) 22... Nxd6 {[%emt 0:00:08]} 23. Qf4 {[%emt 0:01:46]} Qxb4 {[%emt 0:07:50]} (23... Rxc3 $2 {is the wrong capture.} 24. Rxc3 Qxc3 25. Qxd6 $18) 24. Nxe6 $1 {[%emt 0:00:16]} Qxf4 {[%emt 0:02:23]} 25. Nxf4 {[%emt 0:00:04]} Nc4 {[%emt 0:00:43]} 26. Nfd5 {[%emt 0:04:55]} (26. Nxb5 $5 g6 (26... Rxb5 27. Rxc4 Ra8 28. a4 $16) 27. Nd4 $14) 26... Nxd5 {[%emt 0:00:42] The position is equal.} 27. Nxd5 {[%emt 0:00:04]} Kf8 {[%emt 0:00:37] Repels Ne7} 28. g3 {[%emt 0:00:51]} Ra8 {[%emt 0:02:22]} 29. Rb1 {[%emt 0:01:23]} Rxa2 {[%emt 0:00:56]} 30. Rxb5 {[%emt 0:00:25]} Rb2 {[%emt 0:01:40]} 31. Rxb2 {[%emt 0:00:22]} Nxb2 {[%emt 0:00:06]} 32. Rd2 {[%emt 0:01:03]} Nc4 {[%emt 0:00:09]} 33. Rc2 {[%emt 0:00:11]} Nd6 {[%emt 0:00:05]} 34. Rxc8+ {[%emt 0:00:05]} Nxc8 {[%emt 0:00:04]} 35. Kg2 {[%emt 0:00:06] An even fight not without its subleties.   Weighted Error Value: White=0.03 (flawless) /Black=0.02 (flawless) .  Inaccurate:     	White=1     	Black=1      OK:         	White=15    	Black=13     Strong:       	White=1     	---} 1/2-1/2

[Event "German Bundesliga 2023-24"]
[Site "Germany"]
[Date "2024.02.23"]
[Round "9.42"]
[White "Pavlidis, Antonios"]
[Black "Kraemer, Martin"]
[Result "1-0"]
[ECO "B55"]
[WhiteElo "2566"]
[BlackElo "2579"]
[Annotator "TA"]
[PlyCount "63"]
[EventDate "2023.10.20"]
[EventType "team-tourn"]
[EventCountry "GER"]
[SourceTitle "playchess.com"]
[Source "ChessBase"]
[SourceQuality "1"]
[TimeControl "40/6000+30:3000+30"]

{[%evp 21,63,31,35,28,32,39,41,27,16,15,34,12,8,10,10,13,7,9,16,10,31,36,65,31,41,64,48,0,5,0,45,50,79,0,4,0,0,0,0,0,0,0,34,-171]} 1. e4 {[%emt 0:00:02]} c5 {[%emt 0:00:03]} 2. Nf3 {[%emt 0:00:16]} d6 {[%emt 0:00:03]} 3. d4 {[%emt 0:00:36]} cxd4 {[%emt 0:00:04]} 4. Nxd4 {[%emt 0:00:05]} Nf6 {[%emt 0:00:03]} 5. f3 {[%emt 0:01:26]} e5 {[%emt 0:00:11]} 6. Nb3 {[%emt 0:00:07]} d5 {[%emt 0:00:14]} 7. Bg5 {[%emt 0:01:59]} Be6 {[%emt 0:01:57]} 8. Bxf6 {[%emt 0:03:16]} gxf6 {[%emt 0:00:01]} 9. exd5 {[%emt 0:00:07]} Qxd5 {[%emt 0:00:03]} 10. Qxd5 {[%emt 0:01:10]} Bxd5 {[%emt 0:00:02]} 11. Nc3 {[%emt 0:00:10]} Be6 {[%emt 0:00:07]} 12. O-O-O {[%emt 0:02:49]} Nd7 {[%emt 0:09:58]} 13. Nb5 {[%emt 0:07:17] Black must now prevent Nc7+.} Bh6+ {[%emt 0:03:16]} 14. Kb1 {[%emt 0:00:47] Threatens to win with Nc7+.} Ke7 {[%emt 0:00:01]} 15. Nc7 {[%emt 0:04:59]} Rad8 {[%emt 0:00:05][%cal Od7c5]} 16. Nd5+ {[%emt 0:15:42]} Bxd5 $1 {[%emt 0:02:46]} 17. Rxd5 {[%emt 0:00:07]} Nc5 {[%emt 0:00:10] Wards off Bd3} 18. Bc4 {[%emt 0:00:09]} (18. Rxc5 $2 {leads to mate.} Rd1+) 18... Rxd5 {[%emt 0:05:56]} 19. Bxd5 {[%emt 0:01:05]} Rd8 {[%emt 0:02:59]} 20. Bxf7 {[%emt 0:14:34]} Kxf7 {[%emt 0:37:42]} 21. Nxc5 $11 {[%emt 0:00:29][%cal Oc5d3][%mdl 4096] Endgame. KRB-KRN} Rd2 {[%emt 0:00:48]} 22. g4 $1 {[%emt 0:13:30][%cal Oc5e4]} ({Much worse is} 22. Nxb7 Rxg2 23. Nd6+ Ke6 $11) 22... Rf2 {[%emt 0:08:19]} 23. Nxb7 {[%emt 0:06:21]} Be3 {[%emt 0:21:10]} 24. Nd6+ {[%emt 0:10:34]} Ke6 {[%emt 0:00:05]} 25. Nf5 {[%emt 0:00:10]} Bc5 {[%emt 0:00:26]} 26. Nh4 {[%emt 0:00:22]} a5 {[%emt 0:00:04]} 27. c3 {[%emt 0:01:09]} (27. a4 $16) 27... a4 {[%emt 0:01:32]} 28. a3 {[%emt 0:02:14]} Kd5 {[%emt 0:06:22]} 29. Ka2 {[%emt 0:04:29]} Kc4 {[%emt 0:00:01]} 30. Re1 {[%emt 0:08:47]} Rxh2 {[%emt 0:01:50]} 31. Re4+ {[%emt 0:00:33]} Kd5 {[%emt 0:03:52]} 32. g5 $2 {[%emt 0:03:22][%mdl 32768] Weighted Error Value: White=0.12 (very precise) /Black=0.07 (flawless) .  Loses game:     	White=1     	---        Mistake:       	White=1     	---        Inaccurate:     	White=1     	Black=4      OK:         	White=5     	Black=10     Best:        	White=2     	Black=2      Strong:       	White=1     	Black=1     . Loss on time!?} (32. Nf5 $14 {is the one way to stay ahead.}) 1-0

[Event "German Bundesliga 2023-24"]
[Site "Germany"]
[Date "2024.02.23"]
[Round "9.43"]
[White "Neugebauer, Martin"]
[Black "Plat, Vojtech"]
[Result "1/2-1/2"]
[ECO "B06"]
[WhiteElo "2529"]
[BlackElo "2503"]
[Annotator "TA"]
[PlyCount "96"]
[EventDate "2023.10.20"]
[EventType "team-tourn"]
[EventCountry "GER"]
[SourceTitle "playchess.com"]
[Source "ChessBase"]
[SourceQuality "1"]
[TimeControl "40/6000+30:3000+30"]

{[%evp 22,96,29,34,35,44,54,31,35,40,28,35,72,61,96,88,93,86,77,78,125,59,73,44,20,0,93,0,0,0,101,93,101,86,89,47,57,0,65,68,59,59,110,53,52,49,49,49,52,40,63,0,23,0,0,0,0,0,0,-23,0,0,0,0,0,0,0,0,0,0,0,0,0,0,0,0,0]} 1. e4 {[%emt 0:00:18]} g6 {[%emt 0:00:59]} 2. d4 {[%emt 0:00:44]} Bg7 {[%emt 0:00:04]} 3. Nc3 {[%emt 0:00:31]} d5 {[%emt 0:00:18]} 4. exd5 {[%emt 0:02:10]} Nf6 {[%emt 0:00:23]} 5. Bc4 {[%emt 0:05:29]} Nbd7 {[%emt 0:00:22]} 6. Bb3 {[%emt 0:01:08] B06: Modern Defence.} Nb6 {[%emt 0:00:20]} 7. Qf3 {[%emt 0:09:32]} Bg4 {[%emt 0:04:13]} 8. Qg3 {[%emt 0:02:09]} Bf5 {[%emt 0:01:57]} 9. Nf3 {[%emt 0:08:06]} a5 {[%emt 0:02:33]} 10. a4 {[%emt 0:02:31]} Nbxd5 {[%emt 0:04:35]} 11. Nxd5 {[%emt 0:02:43]} Nxd5 {[%emt 0:00:10]} 12. O-O {[%emt 0:01:48]} O-O {[%emt 0:00:48]} 13. Re1 {[%emt 0:03:27]} Ra6 $146 {[%emt 0:13:09]} ({Predecessor:} 13... c6 14. Bg5 h6 15. Bd2 Nf6 16. h3 e6 17. Rad1 Ne4 18. Qh2 Nxd2 19. Rxd2 g5 {½-½ Evans,W (2418)-Mercadal Benejam,J (2413) ENG-ESP email 2011 [2]}) 14. Qh4 {[%emt 0:07:10]} e6 {[%emt 0:07:14]} 15. h3 {[%emt 0:19:57]} Rc6 {[%emt 0:05:04]} 16. Re2 {[%emt 0:03:45]} f6 {[%emt 0:20:29]} 17. Qg3 {[%emt 0:11:16]} Ne7 {[%emt 0:12:17]} 18. c3 {[%emt 0:11:51]} g5 {[%emt 0:05:32]} 19. Nd2 {[%emt 0:01:08]} Kh8 {[%emt 0:03:52]} 20. Ne4 {[%emt 0:04:11]} b6 {[%emt 0:03:04]} (20... Ng6 $142) 21. Qf3 {[%emt 0:04:41]} (21. h4 $16) 21... Bg6 $14 {[%emt 0:00:34]} 22. Bd2 {[%emt 0:02:36]} e5 {[%emt 0:02:30]} 23. Rae1 {[%emt 0:02:07]} Qd7 {[%emt 0:01:54]} (23... exd4 $2 {too greedy.} 24. Ng3 dxc3 25. Bxc3 (25. Rxe7 cxd2 26. Qxc6 dxe1=N $17) 25... Rxc3 26. bxc3 $18 (26. Qxc3 f5 $18)) (23... h6 $1 $11 {remains equal.}) 24. Ng3 {[%emt 0:00:44]} (24. dxe5 $16 fxe5 25. Qg4 Qxg4 26. hxg4) 24... Rd6 $11 {[%emt 0:00:18]} 25. Bc1 {[%emt 0:01:12]} Nf5 {[%emt 0:09:02]} (25... Nc6 $1 $11 {keeps the balance.}) 26. Nxf5 $16 {[%emt 0:01:26]} Bxf5 {[%emt 0:00:16]} 27. dxe5 {[%emt 0:00:26]} fxe5 {[%emt 0:01:30]} 28. Qg3 {[%emt 0:00:29]} (28. Bxg5 Bd3 (28... Bc2 29. Qxf8+ Bxf8 30. Bxc2 $16) 29. Qe3 Bxe2 30. Rxe2 b5) 28... h6 {[%emt 0:01:02]} 29. f3 {[%emt 0:00:35]} ({White should try} 29. h4 $1 $14) 29... Bg6 {[%emt 0:02:06]} (29... Bf6 $11) 30. h4 $1 $14 {[%emt 0:00:29]} gxh4 {[%emt 0:01:08]} 31. Qxh4 {[%emt 0:00:06]} Bh7 {[%emt 0:00:06] [#]} (31... Bd3 $14) 32. Bc2 {[%emt 0:00:46]} ({White should play} 32. f4 $1 $16 {[%cal Rf4e5]} e4 33. g4) 32... Bxc2 $14 {[%emt 0:01:37]} 33. Rxc2 {[%emt 0:00:02]} Qf5 {[%emt 0:02:57]} 34. Rce2 {[%emt 0:01:01]} Rg6 {[%emt 0:01:08]} 35. Rf1 {[%emt 0:00:34]} Rg8 {[%emt 0:00:45]} 36. Qh2 {[%emt 0:00:41]} (36. Qe4 $14 Qxe4 37. Rxe4) 36... Kh7 {[%emt 0:00:55]} 37. Kh1 {[%emt 0:00:26]} Bf6 {[%emt 0:01:20]} 38. g4 {[%emt 0:00:37]} Qd3 {[%emt 0:01:22]} 39. Ree1 {[%emt 0:00:31]} e4 {[%emt 0:01:05]} 40. fxe4 {[%emt 0:00:23]} (40. Qe2 {simplifies} Qxe2 41. Rxe2 exf3 42. Rxf3 R8g7 43. Rf5) 40... Bg7 {[%emt 0:00:55]} 41. g5 {[%emt 0:10:54]} Rf8 {[%emt 0:01:50]} 42. Rxf8 {[%emt 0:14:10]} Bxf8 {[%emt 0:00:09]} 43. Qe2 {[%emt 0:04:51]} Qg3 {[%emt 0:03:29]} 44. Rg1 $1 {[%emt 0:02:04]} Qh3+ {[%emt 0:21:09]} 45. Qh2 {[%emt 0:00:06]} Qf3+ {[%emt 0:00:02]} 46. Qg2 {[%emt 0:00:10]} Qh5+ {[%emt 0:01:29]} 47. Qh2 {[%emt 0:00:06]} Qf3+ {[%emt 0:00:02]} 48. Qg2 {[%emt 0:00:04]} Qh5+ {[%emt 0:08:18]} 1/2-1/2

[Event "German Bundesliga 2023-24"]
[Site "Germany"]
[Date "2024.02.23"]
[Round "9.44"]
[White "Burg, Twan"]
[Black "Krejci, Jan"]
[Result "1/2-1/2"]
[ECO "C92"]
[WhiteElo "2530"]
[BlackElo "2517"]
[Annotator "TA"]
[PlyCount "42"]
[EventDate "2023.10.20"]
[EventType "team-tourn"]
[EventCountry "GER"]
[SourceTitle "playchess.com"]
[Source "ChessBase"]
[SourceQuality "1"]
[TimeControl "40/6000+30:3000+30"]

{[%evp 24,42,8,25,22,6,15,25,22,20,19,24,25,33,21,29,21,21,30,41,23]} 1. e4 {[%emt 0:00:03]} e5 {[%emt 0:00:05]} 2. Nf3 {[%emt 0:00:04]} Nc6 {[%emt 0:00:04]} 3. Bb5 {[%emt 0:00:05][%cal Bf1b5,Bb5a4,Ba4b3][%mdl 32]} a6 {[%emt 0:00:05]} 4. Ba4 {[%emt 0:00:03]} Nf6 {[%emt 0:00:12]} 5. O-O {[%emt 0:00:07]} Be7 {[%emt 0:00:04]} 6. Re1 {[%emt 0:00:05]} b5 {[%emt 0:00:29]} 7. Bb3 {[%emt 0:00:05]} d6 {[%emt 0:00:12]} 8. c3 {[%emt 0:00:18]} O-O {[%emt 0:00:08]} 9. h3 {[%emt 0:00:05]} Bb7 {[%emt 0:03:42]} 10. d4 {[%emt 0:00:31]} Re8 {[%emt 0:00:23]} 11. Ng5 {[%emt 0:00:23]} Rf8 {[%emt 0:00:08]} 12. Nf3 {[%emt 0:00:06]} Re8 {[%emt 0:00:07]} 13. Nbd2 {[%emt 0:00:11][%cal Bb1d2,Bd2f1,Bf1g3][%mdl 32]} exd4 {[%emt 0:00:49]} 14. cxd4 {[%emt 0:00:10]} Nd7 {[%emt 0:00:19]} 15. Nf1 {[%emt 0:00:37]} Na5 {[%emt 0:00:28] White has an edge.} 16. Bc2 {[%emt 0:00:10]} Bf6 {[%emt 0:00:04]} 17. Ng3 {[%emt 0:00:22]} g6 $1 {[%emt 0:00:29] Dodges Nf5} 18. Rb1 {[%emt 0:00:16]} c5 {[%emt 0:00:52]} 19. d5 {[%emt 0:00:09]} Nc4 {[%emt 0:00:08]} 20. b3 {[%emt 0:00:12]} Nce5 {[%emt 0:03:40]} 21. Nh2 {[%emt 0:00:19] Strongly threatening f4.} Nb6 {[%emt 0:00:25] Weighted Error Value: White=0.00 (flawless) /Black=0.00 (flawless) .  OK:         	White=5     	Black=5      Strong:       	---       	Black=1} 1/2-1/2

[Event "German Bundesliga 2023-24"]
[Site "Germany"]
[Date "2024.02.23"]
[Round "9.45"]
[White "Kraus, Tomas"]
[Black "Swinkels, Robin"]
[Result "1/2-1/2"]
[ECO "B52"]
[WhiteElo "2491"]
[BlackElo "2515"]
[Annotator "TA"]
[PlyCount "41"]
[EventDate "2023.10.20"]
[EventType "team-tourn"]
[EventCountry "GER"]
[SourceTitle "playchess.com"]
[Source "ChessBase"]
[SourceQuality "1"]
[TimeControl "40/6000+30:3000+30"]

{[%evp 14,41,27,24,20,18,11,0,18,14,22,25,16,16,20,1,13,0,0,0,3,0,16,-1,3,0,14,0,4,0]} 1. e4 {[%emt 0:00:07]} c5 {[%emt 0:00:03]} 2. Nf3 {[%emt 0:00:28]} d6 {[%emt 0:00:04]} 3. Bb5+ {[%emt 0:00:47]} Bd7 {[%emt 0:00:05]} 4. Bxd7+ {[%emt 0:00:23]} Nxd7 {[%emt 0:00:04]} 5. O-O {[%emt 0:00:39]} Ngf6 {[%emt 0:01:13]} 6. Qe2 {[%emt 0:01:28]} e6 {[%emt 0:00:13]} 7. d4 {[%emt 0:00:41]} cxd4 {[%emt 0:00:18]} 8. Nxd4 {[%emt 0:00:07]} a6 {[%emt 0:01:53]} 9. c4 {[%emt 0:04:00]} Qa5 {[%emt 0:01:57]} 10. Rd1 {[%emt 0:10:17]} Be7 {[%emt 0:05:17]} 11. b3 {[%emt 0:04:04]} O-O {[%emt 0:00:32]} 12. Bb2 {[%emt 0:01:32]} Rfe8 {[%emt 0:08:49]} 13. Nc3 {[%emt 0:02:21] The position is equal.} Bf8 {[%emt 0:01:56]} 14. Re1 {[%emt 0:06:58]} Ne5 {[%emt 0:08:03]} 15. Nf3 {[%emt 0:11:12]} Rad8 {[%emt 0:36:12]} 16. a3 {[%emt 0:21:16]} Ng6 {[%emt 0:02:42]} 17. Rad1 {[%emt 0:04:52]} Qh5 {[%emt 0:05:20]} 18. Nd4 {[%emt 0:09:04]} Qg5 {[%emt 0:05:44]} 19. Nf3 {[%emt 0:02:12]} Qh5 {[%emt 0:00:17]} 20. Nd4 {[%emt 0:02:24]} Qg5 {[%emt 0:00:15]} 21. Nf3 {[%emt 0:02:06] A rather calm draw.   Weighted Error Value: White=0.07 (flawless) /Black=0.04 (flawless) .  OK:         	White=4     	Black=3} 1/2-1/2